Cogmind - Beta 13 @@@ ROGUE MODE // 2024.05.18 @ 17:09:55 Player: H3-RMN Result: Destroyed by L-41 Fighter with Axe Performance ------------- Evolutions (3) 1500 Regions Visited (13) 2600 Robots Destroyed (186) 930 Value Destroyed (6625) 6625 Prototype IDs (54) 1080 Alien Tech Used (0) 0 Bonus (1843) 1843 TOTAL SCORE: 14578 Bonus ------- High Alert Combat Kills 636 Follower Combat Kills 500 Entered Garrisons 200 Aligned with FarCom 300 Met Data Miner 300 Acquired ECA 300 Friendly Fire -393 Cogmind --------- Core Integrity 0/700 Matter 174/300 Energy 100/100 System Corruption 0% Temperature Cool (0) Movement Core (150) Ox2 Location -6/Proximity Caves Parts ------- > --- POWER (1) -------- (None) > --- PROPULSION (4) --- (None) > --- UTILITY (6) ------ Lightpack 2.0 Transport Network Coupler Advanced Hacking Suite > --- WEAPON (2) ------- Gauss Rifle > --- INVENTORY (40) --- Light Deuterium Engine Light Nuclear Core High-capacity Matter Pod (0) Machine Analyzer Encrypted Comm Array Launcher Guidance Computer Core Analyzer Improved Utility Shielding Improved Light Armor Plating Hacking Suite Hacking Suite Hacking Suite Hacking Suite Hacking Suite Advanced Hacking Suite System Mapper Ghost Barrier Quantum Router Authchip [Weapon] System Restoration Module Trap Extractor (0/4) Improved Recalibrator Improved Datajack Improved Plasma Cutter Axe Peak State ------------ > --- POWER ------------ Micro Nuclear Core > --- PROPULSION ------- Cooled Airjet Cooled Airjet Combat Airjet Xenon Bombardment Thruster > --- UTILITY ---------- Lightpack 2.0 Transport Network Coupler Improved Medium Armor Plating Advanced Hacking Suite > --- WEAPON ----------- Scatter Rocket Array Spear > --- INVENTORY -------- Light Nuclear Core High-capacity Matter Pod Machine Analyzer Encrypted Comm Array Launcher Guidance Computer Core Analyzer Improved Utility Shielding Improved Utility Shielding Improved Light Armor Plating Hacking Suite Hacking Suite Hacking Suite Hacking Suite Hacking Suite Advanced Hacking Suite Authchip [Processor] Authchip [Weapon] System Restoration Module Trap Extractor Improved Recalibrator KE Penetrator Improved Datajack Improved Plasma Cutter Spear [Rating: 82] Favorites ----------- Power Deuterium Engine Engine Deuterium Engine Power Core Micro Nuclear Core Propulsion Armored Treads Treads Armored Treads Leg Aluminum Leg Wheel Wheel Hover Unit Cooled Airjet Flight Unit Xenon Bombardment Thruster Utility Large Storage Unit Device Advanced Cooling System Storage Large Storage Unit Processor Advanced Targeting Computer Hackware Advanced Hacking Suite Protection Improved Light Armor Plating Weapon Light Assault Rifle Energy Gun Advanced Beam Rifle Energy Cannon Advanced Plasma Cannon Ballistic Gun Light Assault Rifle Ballistic Cannon Flak Cannon Launcher Scatter Rocket Array Special Weapon Improved Plasma Cutter Slashing Weapon Axe Piercing Weapon Spear Special Melee Weapon Improved Datajack Build | -11 -10 -10 -10 -9 -8 -8 -8 -8 -7 -7 -7 -7 -6 ------- Run | Yrd Mat Min Exi Min Mat Gar Mat Sto Fac Low Low Dat Pro Slots Evolved 6 | . . . . . 4 . . . 2 . . . . Power . | . . . . . . . . . . . . . . Propulsion 2 | . . . . . 2 . . . . . . . . Utility 4 | . . . . . 2 . . . 2 . . . . Weapon . | . . . . . . . . . . . . . . Parts Attached 211 | 8 3 14 1 2 43 38 20 23 20 8 16 14 1 Power 18 | 1 1 4 . . 3 2 1 2 2 . 2 . . Engine 11 | 1 . 3 . . 2 2 1 1 . . 1 . . Core 7 | . 1 1 . . 1 . . 1 2 . 1 . . Reactor . | . . . . . . . . . . . . . . Propulsion 61 | 2 . 3 . 1 16 10 5 4 5 2 8 5 . Treads 35 | 1 . 2 . . 12 9 4 4 . . 3 . . Leg 8 | . . . . . . 1 . . . . 4 3 . Wheel 10 | 1 . 1 . 1 2 . . . . 2 1 2 . Hover 6 | . . . . . 1 . 1 . 4 . . . . Flight 2 | . . . . . 1 . . . 1 . . . . Utility 55 | 3 1 4 1 1 10 6 7 2 12 4 2 2 . Device 16 | 2 . 2 . . 3 2 2 . 3 1 . 1 . Storage 6 | 1 1 . 1 . 1 . 1 . 1 . . . . Processor 4 | . . . . . 3 . . . 1 . . . . Hackware 3 | . . . . . . . . . 3 . . . . Protection 26 | . . 2 . 1 3 4 4 2 4 3 2 1 . Artifact . | . . . . . . . . . . . . . . Weapon 77 | 2 1 3 . . 14 20 7 15 1 2 4 7 1 Energy Gun 8 | 1 . . . . 2 4 1 . . . . . . Energy Cannon 8 | . . . . . . 6 1 1 . . . . . Ballistic Gun 31 | 1 1 3 . . 8 3 3 5 . 1 2 3 1 Ballistic Cannon 1 | . . . . . 1 . . . . . . . . Launcher 13 | . . . . . 3 3 . 3 . 1 1 2 . Special Weapon 7 | . . . . . . 3 . 4 . . . . . Impact Weapon . | . . . . . . . . . . . . . . Slashing Weapon 1 | . . . . . . . . . . . 1 . . Piercing Weapon 3 | . . . . . . 1 . 1 . . . 1 . Special Melee Weapon 5 | . . . . . . . 2 1 1 . . 1 . Unidentified Prototypes 8 | . . . . . 5 . 2 1 . . . . . Parts Lost 43 | . . 6 . . 1 6 . 2 . 5 10 11 2 Power 7 | . . 2 . . . 1 . 1 . . 2 1 . Propulsion 23 | . . 2 . . 1 3 . 1 . 4 4 8 . Utility 5 | . . 1 . . . . . . . 1 2 . 1 Weapon 8 | . . 1 . . . 2 . . . . 2 2 1 Highest Loss Streak 11 | . . 4 . . 1 2 . 2 . 4 8 11 2 To Critical Strikes . | . . . . . . . . . . . . . . Average Slot Usage (%) 92 | . 100 98 100 100 99 96 99 98 81 64 78 70 38 Engine 7 | . 8 11 14 14 8 7 9 8 . . 3 . . Core 1 | . 5 2 . . . . . . 7 7 2 4 . Treads 23 | . 14 14 14 14 32 32 35 34 . . 9 14 . Leg 1 | . . . . . . 2 . . . . 10 2 . Wheel 3 | . 14 12 14 14 3 . . . . 1 5 2 . Hover 2 | . . . . . . . . . 22 7 . . . Device 7 | . 14 9 14 5 12 9 9 9 . . . . . Storage 9 | . 14 14 14 14 9 9 9 9 7 7 7 7 7 Processor 6 | . . . . . 5 9 9 9 3 7 7 7 7 Hackware 2 | . . . . . . . . . 12 7 7 7 7 Protection 7 | . . 4 . 8 8 8 8 8 5 6 7 6 6 Energy Gun 2 | . 4 . . . 8 3 . . . . . . . Energy Cannon 2 | . . . . . . 4 8 8 . . . . . Ballistic Gun 10 | . 23 28 28 28 7 9 8 7 . 5 6 3 1 Piercing Weapon 1 | . . . . . . . . . 7 7 . 5 7 Naked Turns . | . . . . . . . . . . . . . . Heaviest Build 69 | 11 28 30 28 32 47 52 69 69 54 28 24 22 9 Greatest Support 92 | 20 20 20 10 12 92 87 90 90 67 28 40 25 3 Greatest Overweight (x) 6 | . 2 2 2 3 3 1 . . . 6 4 4 2 Average Overweight (x) . | . 1 1 2 2 . . . . . 1 . . 2 Largest Inventory Capacity 40 | 8 15 15 15 15 15 15 20 20 40 40 40 40 40 Average Capacity 21 | 7 14 15 15 15 15 15 18 20 39 40 40 40 40 Most Carried 30 | 7 15 15 15 15 15 15 20 20 22 25 27 30 26 Average Carried 17 | 4 12 14 14 15 14 14 18 19 17 23 24 26 25 Final Capacity 40 | 8 15 15 15 15 15 15 20 20 40 40 40 40 40 Final Carried 27 | 7 15 14 15 15 15 15 20 20 22 24 27 26 25 Class Distribution -------------------- 65% | Mutant 23% | Hauler-Mutant 10% | Scavenger-Mutant Dominant Class ---------------- Mutant | -10/Materials Mutant | -10/Mines Mutant | -10/Exiles Mutant | -9/Mines Mutant | -8/Materials Scavenger-Mutant | -8/Garrison Mutant | -8/Materials Mutant | -8/Storage Hauler-Mutant | -7/Factory Hauler-Mutant | -7/Lower Caves Hauler-Mutant | -7/Lower Caves Hauler-Mutant | -7/Data Miner Hauler-Mutant | -6/Proximity Caves Resources | -11 -10 -10 -10 -9 -8 -8 -8 -8 -7 -7 -7 -7 -6 ----------- Run | Yrd Mat Min Exi Min Mat Gar Mat Sto Fac Low Low Dat Pro Matter Collected 5034 | 295 152 329 10 38 886 795 468 689 160 563 348 301 . Remotely 140 | 140 . . . . . . . . . . . . . Salvage Created 7021 | 130 225 342 . 14 1376 1041 1148 1285 305 376 628 151 . Parts 422 | 10 14 24 . 2 89 60 59 100 18 20 21 5 . Haulers Intercepted 13 | . . . . . 6 . 5 1 1 . . . . Recyclers Shooed 5 | . . 2 . . . . 3 . . . . . . Parts Field Recycled . | . . . . . . . . . . . . . . Retrieved Matter . | . . . . . . . . . . . . . . Parts Self-Destructed 32 | . . . . . . . . . . 15 17 . . Prevented . | . . . . . . . . . . . . . . Kills | -11 -10 -10 -10 -9 -8 -8 -8 -8 -7 -7 -7 -7 -6 ------- Run | Yrd Mat Min Exi Min Mat Gar Mat Sto Fac Low Low Dat Pro Combat Hostiles Destroyed 134 | . 7 10 . . 30 26 9 24 3 13 8 4 . Melee 4 | . . . . . . . . . 3 . 1 . . Guns 62 | . 7 10 . . 15 13 1 7 . 4 4 1 . Cannons 31 | . . . . . 7 6 7 11 . . . . . AOE 36 | . . . . . 8 7 . 6 . 9 3 3 . Classes Destroyed 19 | 2 2 2 . . 8 1 . 2 . 1 1 . . Worker 12 | . . . . . 5 . 1 4 2 . . . . Builder 3 | . . . . . 1 . 1 1 . . . . . Tunneler 4 | 3 . . . 1 . . . . . . . . . Hauler 13 | . . . . . 6 . 5 1 1 . . . . Recycler 5 | 1 . . . . . . 3 1 . . . . . Minesweeper 1 | . . . . . . . . . . . 1 . . Mechanic 2 | . . . . . . . . 1 1 . . . . Operator 6 | . . . . . 1 . 1 3 1 . . . . Watcher 4 | . . . . . 2 1 . 1 . . . . . Swarmer 36 | . 3 3 . . 10 8 . 4 . 5 3 . . Grunt 49 | . 4 4 . . 10 8 5 11 . 4 2 1 . Brawler 2 | . . . . . 1 . . . . . 1 . . Duelist 7 | . . . . . 1 2 . 1 . 2 1 . . Sentry 25 | . . 2 . . 6 6 2 7 1 1 . . . Demolisher 1 | . . . . . . . . 1 . . . . . Specialist 2 | . . . . . 2 . . . . . . . . Hunter 7 | . . . . . . 2 2 . 2 . 1 . . Programmer 1 | . . . . . . . . . . 1 . . . Enhanced Grunt 4 | . . . . . . . . . . . . 4 . Assembled 1 | . . 1 . . . . . . . . . . . Thug 1 | . . . . . . . 1 . . . . . . Best Kill Streak 8 | 2 3 5 . 1 6 3 3 8 2 6 4 3 . Combat Bots Only 6 | . 3 5 . . 4 3 2 6 1 6 4 3 . Max Kills in Single Turn 7 | 1 1 2 . 1 4 2 2 7 1 4 2 2 . Gunslinging 1 | . . 1 . . 1 . . . . . . . . Exploded 4 | . . . . . 3 2 . 4 . 4 2 2 . Melee 1 | . . . . . . . . . 1 . 1 . . Uniques/NPCs Destroyed 1 | . . . . . . . . . . . . 1 . Data Miner (-7/Data Miner) Combat | -11 -10 -10 -10 -9 -8 -8 -8 -8 -7 -7 -7 -7 -6 -------- Run | Yrd Mat Min Exi Min Mat Gar Mat Sto Fac Low Low Dat Pro Hostile Shots Fired 671 | . 33 65 . . 120 138 25 68 56 45 87 28 6 Missed 186 | . 9 21 . . 27 34 9 22 18 11 27 8 . Damage Taken 8864 | . 282 571 . . 1347 1983 237 1081 442 777 1043 958 143 Core 1372 | . 18 124 . . 164 120 29 181 161 63 125 331 56 Absorbed by Shields 132 | . . . . . 132 . . . . . . . . Redirected to Shielding 107 | . . . . . . . . . . . 69 26 12 Regen/Repaired (Parts) 784 | . . . . . 205 . 306 257 16 . . . . Core Remaining (%) 51 | 100 . . . 43 . . . 10 . . . . . Volleys Fired 529 | 15 29 38 . 9 107 126 48 65 . 30 34 26 2 Largest 2 | 2 2 2 . 2 2 2 2 2 . 1 1 1 1 Hottest 133 | 60 60 40 . 40 100 133 133 133 . 50 50 50 28 Shots Fired 871 | 30 58 76 . 18 201 183 96 117 . 30 34 26 2 Gun 665 | 30 58 76 . 18 172 124 47 58 . 27 32 21 2 Cannon 177 | . . . . . 25 47 49 56 . . . . . Launcher 28 | . . . . . 4 12 . 2 . 3 2 5 . Special 1 | . . . . . . . . 1 . . . . . Kinetic 532 | 15 55 76 . 18 103 78 47 58 . 27 32 21 2 Thermal 311 | 15 3 . . . 94 93 49 57 . . . . . Explosive 28 | . . . . . 4 12 . 2 . 3 2 5 . Electromagnetic . | . . . . . . . . . . . . . . Robot Hit Streak 33 | 6 12 8 . 8 18 18 33 16 . 4 13 5 3 Robot Miss Streak 13 | 2 2 3 . 2 6 2 3 4 . 10 13 11 . Penetration Max 1 | . . . . . . 1 1 1 . 1 1 . 1 Secondary Targets 4 | . . 1 . . 2 1 . . . . . . . Max Gunslinging Chain 1 | . . 1 . . 1 1 . . . . . . . Shots Hit Robots 604 | 15 41 48 . 15 142 107 64 70 22 18 38 22 2 Core Hits 376 | 6 16 22 . 4 90 49 35 50 9 31 18 45 1 Critical Kills 16 | . . . . . . 4 4 7 . . 1 . . Critical Parts Destroyed 19 | . . . . . . 4 5 8 . . 1 1 . Critical Strikes 50 | . . . . . 8 10 9 17 2 . 3 1 . Burn 10 | . . . . . 8 2 . . . . . . . Meltdown 1 | . . . . . . . 1 . . . . . . Destroy 36 | . . . . . . 8 8 17 . . 2 1 . Sever 1 | . . . . . . . . . . . 1 . . Impale 2 | . . . . . . . . . 2 . . . . Melee Attacks 75 | . . . . . . 1 1 . 53 . 17 2 1 Impact . | . . . . . . . . . . . . . . Slashing 15 | . . . . . . . . . . . 15 . . Piercing 57 | . . . . . . 1 . . 52 . 2 1 1 Sneak Attacks 13 | . . . . . . 1 1 . 8 . 1 2 . Combat Hostiles 1 | . . . . . . . . . 1 . . . . Follow-up Attacks . | . . . . . . . . . . . . . . Damage Inflicted 15952 | 146 338 391 . 114 3423 2622 1608 2317 842 1068 1531 1492 60 Guns 6177 | 146 338 391 . 114 2121 1255 230 256 . 396 557 313 60 Cannons 3722 | . . . . . 492 507 1279 1444 . . . . . Explosions 4301 | . . . . . 810 791 93 617 . 672 210 1108 . Melee 1746 | . . . . . . 69 . . 842 . 764 71 . Ramming 6 | . . . . . . . 6 . . . . . . Kinetic 4931 | 62 328 391 . 114 1471 753 230 256 . 396 557 313 60 Thermal 4980 | 84 10 . . . 1142 1009 1291 1444 . . . . . Explosive 4208 | . . . . . 810 791 . 617 . 672 210 1108 . Electromagnetic 81 | . . . . . . . 81 . . . . . . Impact . | . . . . . . . . . . . . . . Slashing 742 | . . . . . . . . . . . 742 . . Piercing 1004 | . . . . . . 69 . . 842 . 22 71 . Highest Corruption 2 | . . . . . . 1 2 2 . . . . . Average Corruption 1 | . . . . . . 1 1 2 . . . . . Corruption Purged . | . . . . . . . . . . . . . . Corruption Blocked . | . . . . . . . . . . . . . . Effects 52 | . . . . . . 2 21 29 . . . . . Message Errors 11 | . . . . . . . 6 5 . . . . . Matter Fused 12 | . . . . . . . 2 10 . . . . . Heat Flow Errors 9 | . . . . . . 1 5 3 . . . . . Energy Discharges 5 | . . . . . . . 1 4 . . . . . Parts Rejected 1 | . . . . . . . 1 . . . . . . Data Loss (minor) 8 | . . . . . . . 3 5 . . . . . Data Loss (major) 2 | . . . . . . . 1 1 . . . . . Misfires 2 | . . . . . . 1 1 . . . . . . Alerts 1 | . . . . . . . 1 . . . . . . Weapon Failures 1 | . . . . . . . . 1 . . . . . Overload Shots . | . . . . . . . . . . . . . . Overflow Damage 389 | . . . . . 49 44 15 27 77 3 144 30 . Projectiles 29 | . . . . . . 4 15 10 . . . . . Explosions 121 | . . . . . 49 6 . 17 . 3 16 30 . Melee 239 | . . . . . . 34 . . 77 . 128 . . Knockbacks 5 | . . . . . 5 . . . . . . . . Impact . | . . . . . . . . . . . . . . Kinetic 5 | . . . . . 5 . . . . . . . . Secondary . | . . . . . . . . . . . . . . Self-Inflicted Damage 575 | . . . . . 104 254 3 . . 89 79 46 . Shots 23 | . . . . . 3 10 1 . . 4 3 2 . Rammed 1 | . . . . . . . 1 . . . . . . Targets Rammed 1 | . . . . . . . 1 . . . . . . Kicked . | . . . . . . . . . . . . . . Crushed . | . . . . . . . . . . . . . . Highest Temperature 222 | 40 20 25 . 20 39 222 182 175 . 18 9 . . Average Temperature 20 | 15 9 10 . 9 12 29 72 82 . 10 4 . . Received Heat Transfer 2337 | . 126 153 . . 525 558 90 216 156 207 270 . 36 Siege Activations . | . . . . . . . . . . . . . . Robots Corrupted 1 | . . . . . . . 1 . . . . . . Combat Hostiles . | . . . . . . . . . . . . . . Parts Fried 1 | . . . . . . . 1 . . . . . . Impact Corruptions . | . . . . . . . . . . . . . . Robots Melted 1 | . . . . . . . 1 . . . . . . Combat Hostiles 1 | . . . . . . . 1 . . . . . . Parts Melted 12 | . . . . . 3 3 3 3 . . . . . Heat Transferred 9089 | 200 25 . . . 2997 1817 1950 2100 . . . . . Parts Sabotaged . | . . . . . . . . . . . . . . Parts Stolen . | . . . . . . . . . . . . . . Parts Stripped . | . . . . . . . . . . . . . . Power Chain Reactions 1 | . . . . . . . 1 . . . . . . Alert | -11 -10 -10 -10 -9 -8 -8 -8 -8 -7 -7 -7 -7 -6 ------- Run | Yrd Mat Min Exi Min Mat Gar Mat Sto Fac Low Low Dat Pro Peak Influence 1657 | 20 280 286 . 5 599 1657 917 468 221 . . . . Initial 807 | . 13 36 . . . 342 807 200 96 . . . . Average 419 | 9 104 133 . 2 375 1004 583 163 100 . . . . Maximum Alert Level 5 | . 1 1 . . 2 5 3 2 1 . . . . Low Security (%) 37 | 100 77 83 . 100 20 . . 52 99 . . . . Level 1 17 | . 22 16 . . 29 1 11 45 . . . . . Level 2 26 | . . . . . 49 25 59 2 . . . . . Level 3 10 | . . . . . . 31 29 . . . . . . Level 4 7 | . . . . . . 38 . . . . . . . Level 5 . | . . . . . . 3 . . . . . . . High Security . | . . . . . . . . . . . . . . Max Security . | . . . . . . . . . . . . . . Squads Dispatched 20 | . 3 1 . . 3 . 2 5 6 . . . . Investigation 9 | . 3 1 . . 1 . . . 4 . . . . Extermination . | . . . . . . . . . . . . . . Reinforcement 9 | . . . . . 2 . 2 3 2 . . . . Assault 2 | . . . . . . . . 2 . . . . . Garrison . | . . . . . . . . . . . . . . Intercept . | . . . . . . . . . . . . . . Searches Triggered . | . . . . . . . . . . . . . . Construction Impeded 1 | . . . . . . . . . 1 . . . . Haulers Reinforced . | . . . . . . . . . . . . . . Active Scanning Responses . | . . . . . . . . . . . . . . Cargo Convoy Interrupts . | . . . . . . . . . . . . . . Stealth | -11 -10 -10 -10 -9 -8 -8 -8 -8 -7 -7 -7 -7 -6 --------- Run | Yrd Mat Min Exi Min Mat Gar Mat Sto Fac Low Low Dat Pro Distress Signals 16 | . 3 1 . . 2 . 5 4 1 . . . . Communications Jammed . | . . . . . . . . . . . . . . Distress Signals . | . . . . . . . . . . . . . . Times Spotted 222 | . 13 13 . . 47 27 31 45 15 14 10 4 3 Peak Tracking Total 12 | . 4 5 . . 5 3 3 12 8 7 3 3 3 Tactical Retreats 11 | . 2 2 . . . . . 2 5 . . . . Traps | -11 -10 -10 -10 -9 -8 -8 -8 -8 -7 -7 -7 -7 -6 ------- Run | Yrd Mat Min Exi Min Mat Gar Mat Sto Fac Low Low Dat Pro Traps Triggered 5 | . 1 . . . . 1 2 1 . . . . . Indirectly . | . . . . . . . . . . . . . . Trap Hack Attempts 33 | . . . . . . . 32 . 1 . . . . Triggered . | . . . . . . . . . . . . . . Disarmed 1 | . . . . . . . . . 1 . . . . Reprogrammed 5 | . . . . . . . 5 . . . . . . Reused 5 | . . 1 . . . . . . 3 . . 1 . Traps Extracted 8 | . . . . . . . 4 . . 4 . . . Installed 15 | . . 1 . . . . 4 . 3 . 3 4 . Triggered 6 | . . 1 . . . . . . 5 . . . . Most Traps Carried 4 | . . . . . . 4 4 3 3 4 4 4 . Machines | -11 -10 -10 -10 -9 -8 -8 -8 -8 -7 -7 -7 -7 -6 ---------- Run | Yrd Mat Min Exi Min Mat Gar Mat Sto Fac Low Low Dat Pro Machines Disabled 22 | . . . . . 5 6 8 3 . . . . . Max in Single Turn 3 | . . . . . 1 1 3 1 . . . . . Garrison Access 1 | . . . . . . . . . 1 . . . . Garrison Relay 5 | . . . . . . 5 . . . . . . . Machines Repaired . | . . . . . . . . . . . . . . Machines Dismantled 9 | . . . . . . 3 . 6 . . . . . Machines Sabotaged . | . . . . . . . . . . . . . . Overloaded Fab Kills . | . . . . . . . . . . . . . . Hacking | -11 -10 -10 -10 -9 -8 -8 -8 -8 -7 -7 -7 -7 -6 --------- Run | Yrd Mat Min Exi Min Mat Gar Mat Sto Fac Low Low Dat Pro Machines Accessed 61 | . 5 1 2 . 13 4 10 12 11 . . 3 . Terminals 33 | . 3 1 . . 7 4 6 9 3 . . . . Fabricators 3 | . . . . . . . . . 3 . . . . Repair Stations 8 | . . . . . 2 . 2 2 2 . . . . Recycling Units 6 | . 2 . . . 1 . 1 . 2 . . . . Scanalyzers 3 | . . . . . 2 . 1 . . . . . . Garrison Access 3 | . . . . . 1 . . 1 1 . . . . Total Hacks 191 | . 17 3 5 . 41 9 32 35 25 . . 24 . Successful 128 | . 10 2 5 . 29 2 22 16 18 . . 24 . Failed 62 | . 6 1 . . 12 7 10 19 7 . . . . Catastrophic 11 | . . 1 . . 3 2 2 2 1 . . . . Database Lockouts 1 | . 1 . . . . . . . . . . . . Manual 65 | . 12 3 1 . 14 3 14 12 6 . . . . Terminals 105 | . 13 3 . . 20 9 25 28 7 . . . . Fabricators 8 | . . . . . . . . . 8 . . . . Repair Stations 18 | . . . . . 6 . 4 5 3 . . . . Recycling Units 12 | . 4 . . . 2 . 1 . 5 . . . . Scanalyzers 13 | . . . . . 11 . 2 . . . . . . Garrison Access 6 | . . . . . 2 . . 2 2 . . . . Terminal Hacks 64 | . 3 2 5 . 7 2 8 9 4 . . 24 . Record 10 | . . . 4 . . . . . . . . 6 . Part Schematic 13 | . . . . . . . . 1 1 . . 11 . Robot Schematic 7 | . . 2 . . . . . 1 . . . 4 . Robot Analysis 4 | . 2 . . . 1 . . 1 . . . . . Prototype ID Bank 8 | . 1 . . . 3 . 1 . . . . 3 . Branch Access Points 1 | . . . . . . . . . 1 . . . . Emergency Access Points 2 | . . . . . . 1 1 . . . . . . Terminal Index 3 | . . . . . 1 . 1 . 1 . . . . Unreport Threat 6 | . . . . . . . 3 3 . . . . . Locate Traps 1 | . . . . . 1 . . . . . . . . Hauler Manifests 2 | . . . . . 1 . . 1 . . . . . Zone Layout 5 | . . . . . . . 2 2 1 . . . . Patrol Navigation 1 | . . . . . . 1 . . . . . . . Derelict Proto ID Bank 1 | . . . 1 . . . . . . . . . . Fabricator Hacks 6 | . . . . . . . . . 6 . . . . Network Status 1 | . . . . . . . . . 1 . . . . Load Schematic 3 | . . . . . . . . . 3 . . . . Build 2 | . . . . . . . . . 2 . . . . Repair Station Hacks 16 | . . . . . 6 . 4 4 2 . . . . Scan Component 8 | . . . . . 3 . 2 2 1 . . . . Repair 8 | . . . . . 3 . 2 2 1 . . . . Recycling Unit Hacks 6 | . 2 . . . 1 . 1 . 2 . . . . Report Inventory 5 | . 2 . . . 1 . 1 . 1 . . . . Retrieve Components 1 | . . . . . . . . . 1 . . . . Scanalyzer 12 | . . . . . 10 . 2 . . . . . . Insert Component 6 | . . . . . 5 . 1 . . . . . . Analyze 6 | . . . . . 5 . 1 . . . . . . Garrison Access Hacks 3 | . . . . . 1 . . 1 1 . . . . Unlock Access 2 | . . . . . 1 . . 1 . . . . . Seal Access 1 | . . . . . . . . . 1 . . . . Unauthorized Hacks 21 | . 5 . . . 4 . 7 2 3 . . . . Terminals 15 | . 3 . . . 2 . 7 2 1 . . . . Track 4 | . 1 . . . . . 3 . . . . . . Assimilate 1 | . . . . . . . . 1 . . . . . Botnet 6 | . 1 . . . 1 . 2 1 1 . . . . Disrupt 2 | . 1 . . . . . 1 . . . . . . Operators 2 | . . . . . 1 . 1 . . . . . . Fabricators 1 | . . . . . . . . . 1 . . . . Recompile 1 | . . . . . . . . . 1 . . . . Repair Stations . | . . . . . . . . . . . . . . Recycling Units 4 | . 2 . . . 1 . . . 1 . . . . Mask 1 | . . . . . . . . . 1 . . . . Tunnel 3 | . 2 . . . 1 . . . . . . . . Scanalyzers . | . . . . . . . . . . . . . . Garrison Access 1 | . . . . . 1 . . . . . . . . Reprogram 1 | . . . . . 1 . . . . . . . . Data Cores Recovered . | . . . . . . . . . . . . . . Used . | . . . . . . . . . . . . . . Hacking Detections 48 | . 3 1 . . 12 4 7 12 9 . . . . Full Trace Events 5 | . . 1 . . . 1 . . 3 . . . . Feedback Events . | . . . . . . . . . . . . . . Feedback Blocked . | . . . . . . . . . . . . . . Robot Schematics Acquired 7 | . . 2 . . . . . 1 . . . 4 . Robots Built . | . . . . . . . . . . . . . . Authchips . | . . . . . . . . . . . . . . Time . | . . . . . . . . . . . . . . Total Robot Build Rating . | . . . . . . . . . . . . . . Part Schematics Acquired 17 | . . . . . 4 . 1 . 1 . . 11 . Parts Built 2 | . . . . . . . . . 2 . . . . Authchips . | . . . . . . . . . . . . . . Time 106 | . . . . . . . . . 106 . . . . Total Part Build Rating 12 | . . . . . . . . . 12 . . . . Parts Repaired 8 | . . . . . 3 . 2 2 1 . . . . Time 327 | . . . . . 114 . 94 94 25 . . . . Parts Recycled . | . . . . . . . . . . . . . . Recycled Matter . | . . . . . . . . . . . . . . Retrieved Matter . | . . . . . . . . . . . . . . Retrieved Components 2 | . . . . . . . . . 2 . . . . Parts Scanalyzed 5 | . . . . . 4 . 1 . . . . . . Part Schematics Acquired 5 | . . . . . 4 . 1 . . . . . . Parts Damaged . | . . . . . . . . . . . . . . Bothacking | -11 -10 -10 -10 -9 -8 -8 -8 -8 -7 -7 -7 -7 -6 ------------ Run | Yrd Mat Min Exi Min Mat Gar Mat Sto Fac Low Low Dat Pro Used RIF Installer . | . . . . . . . . . . . . . . Robots Hacked 3 | . . . . . . . 1 . 1 . . 1 . Non-combat 2 | . . . . . . . 1 . 1 . . . . Combat 1 | . . . . . . . . . . . . 1 . Robot Hacks Applied 3 | . . . . . . . 1 . 1 . . 1 . parse_system 1 | . . . . . . . . . . . . 1 . find_recycling 1 | . . . . . . . 1 . . . . . . find_station 1 | . . . . . . . . . 1 . . . . Relay Couplers Released 19 | . . . . . . 19 . . . . . . . Machine Destruction 19 | . . . . . . 19 . . . . . . . Fabnet Peak Effective % . | . . . . . . . . . . . . . . Robots Rewired 4 | . . . . . . 2 . . . 2 . . . Allies Hacked . | . . . . . . . . . . . . . . Hacks Repelled . | . . . . . . . . . . . . . . Allies | -11 -10 -10 -10 -9 -8 -8 -8 -8 -7 -7 -7 -7 -6 -------- Run | Yrd Mat Min Exi Min Mat Gar Mat Sto Fac Low Low Dat Pro Total Allies 16 | . . . . . . 2 . 12 . 2 . . . Largest Group 11 | . . . . . . 2 2 11 . 2 1 1 . Highest-Rated Group 216 | . . . . . . 62 62 216 . 46 16 16 . Highest-Rated Ally 31 | . . . . . . 31 31 31 . 30 16 16 . Total Orders 2 | . . . . . . 2 . . . . . . . STAY 1 | . . . . . . 1 . . . . . . . FOLLOW 1 | . . . . . . 1 . . . . . . . Ally Attacks 173 | . . . . . . 5 61 55 . 13 38 1 . Total Damage 2255 | . . . . . . 42 809 783 . 146 464 11 . Kills 18 | . . . . . . 1 8 4 . 2 3 . . Allies Corrupted 1 | . . . . . . . 1 . . . . . . Allies Melted . | . . . . . . . . . . . . . . Intel | -11 -10 -10 -10 -9 -8 -8 -8 -8 -7 -7 -7 -7 -6 ------- Run | Yrd Mat Min Exi Min Mat Gar Mat Sto Fac Low Low Dat Pro Robot Analysis Total 4 | . 2 . . . 1 . . 1 . . . . . Derelict Logs Recovered 4 | . . 1 . 1 . . . . . 2 . . . Drone Launches . | . . . . . . . . . . . . . . Drone Recoveries . | . . . . . . . . . . . . . . Exploration | -11 -10 -10 -10 -9 -8 -8 -8 -8 -7 -7 -7 -7 -6 ------------- Run | Yrd Mat Min Exi Min Mat Gar Mat Sto Fac Low Low Dat Pro Turns Passed 14173 | 188 449 742 331 639 2588 2175 2004 1779 1040 1045 829 296 68 Spaces Moved 7938 | 83 233 341 298 502 1382 1021 829 736 982 740 582 169 40 Core 111 | 4 . . . . . . . . . 28 15 24 40 Treads 3582 | 77 53 4 . . 856 1021 829 736 5 . 1 . . Legs 304 | . . . . . . . . . . . 235 69 . Wheels 2392 | 2 180 337 298 502 526 . . . . 140 331 76 . Hover 1549 | . . . . . . . . . 977 572 . . . Flight . | . . . . . . . . . . . . . . Fastest Speed 40 | 50 110 110 110 110 100 158 163 163 40 52 95 80 150 Average Speed 130 | 152 136 111 110 115 146 163 166 165 52 116 114 117 150 Slowest Speed 350 | 160 240 240 110 125 240 240 170 170 170 350 250 250 150 Overloaded Moves 37 | . . . . . . . . . 37 . . . . Propulsion Burnouts . | . . . . . . . . . . . . . . Robots Hopped . | . . . . . . . . . . . . . . Cave-ins Triggered . | . . . . . . . . . . . . . . Exploration Rate (%) 61 | 7 51 57 70 89 79 94 61 90 26 80 77 77 6 Regions Visited 13 Branch Regions 8 Pre-discovered Areas 9 | . 2 . 1 1 1 . . 1 . 2 . 1 . Known Exits Taken 2 | . . . . . 1 . . . 1 . . . . Unknown Exits Taken 10 | 1 1 1 1 1 . . 1 1 . 1 1 1 . Scrap Searched 8 | . . . . 4 . . . . . 3 1 . . Spaces Dug 73 | . . . . . . 49 1 . 23 . . . . Terrain Destroyed 436 | . . . . . 35 86 7 103 23 98 40 44 . Melee 23 | . . . . . . . . . 23 . . . . Projectile 26 | . . . . . . . 7 9 . 5 4 1 . AOE 387 | . . . . . 35 86 . 94 . 93 36 43 . Terrain Rammed . | . . . . . . . . . . . . . . Walls Destroyed . | . . . . . . . . . . . . . . Machines Disabled . | . . . . . . . . . . . . . . Actions | -11 -10 -10 -10 -9 -8 -8 -8 -8 -7 -7 -7 -7 -6 --------- Run | Yrd Mat Min Exi Min Mat Gar Mat Sto Fac Low Low Dat Pro Total 10740 | 114 318 637 302 545 1750 1329 1357 1127 1430 888 671 228 44 Wait 1655 | . 41 241 . 31 156 92 394 240 350 89 13 8 . Move 7925 | 82 232 340 297 501 1381 1020 828 735 981 739 581 168 40 Hop . | . . . . . . . . . . . . . . Pick Up 97 | 7 9 2 1 . 24 10 13 7 10 4 6 4 . Fast Attach 68 | 8 1 2 . 1 13 11 8 7 5 2 9 1 . Attach 36 | . . 4 . . 6 4 . 2 8 2 4 5 1 Detach 6 | 1 . . . . . . . . 2 1 1 1 . Swap 107 | . 2 8 1 1 24 23 12 14 7 4 3 8 . Drop 106 | 1 4 1 3 2 39 18 16 11 10 . . 1 . Fire 529 | 15 29 38 . 9 107 126 48 65 . 30 34 26 2 Melee 75 | . . . . . . 1 1 . 53 . 17 2 1 Ram . | . . . . . . . . . . . . . . Kick . | . . . . . . . . . . . . . . Crush 1 | . . . . . . . 1 . . . . . . Escape Stasis . | . . . . . . . . . . . . . . Rewire 26 | . . . . . . 9 . . . 17 . . . Trap 48 | . . 1 . . . . 36 . 4 . 3 4 . Miscellaneous 61 | . . . . . . 15 . 46 . . . . . Route ------- -11/Scrapyard -10/Materials (discovered 2 exits: [*Mat] / *Min) -10/Mines (discovered 3 exits: [*Mat x2] / *Exi) -10/Exiles -9/Mines (discovered 2 exits: *Mat x2) -8/Materials (discovered 5 exits: *Fac x2 / *Sto x2 / Gar) -8/Garrison (discovered 3 exits: *Mat x3) -8/Materials (discovered 2 exits: *Fac / *Sto) -8/Storage (discovered 3 exits: *Fac / [*Rec] / Gar) -7/Factory (discovered 2 exits: *Low x2) -7/Lower Caves -7/Lower Caves (discovered 2 exits: [*Fac] / *Dat) -7/Data Miner -6/Proximity Caves History --------- Turn | Location | Event 2 | -11/Scrapyard | Discovered new exit (range 16) 189 | -11/Scrapyard | Entered Materials 311 | -10/Materials | Build established: Mutant 348 | -10/Materials | Central database locked down 548 | -10/Materials | Discovered new exit (range 8) 628 | -10/Materials | Discovered new exit (range 8) 638 | -10/Materials | Entered Mines 690 | -10/Mines | Found a hidden stash of uninstalled traps 783 | -10/Mines | Lost 4 parts (1p2n1w) 864 | -10/Mines | Learned Materials terminal intel 869 | -10/Mines | Deemed a non-threat by the Exiles lab entrance 869 | -10/Mines | Discovered new exit (range 5) 909 | -10/Mines | Discovered new exit (range 9) 930 | -10/Mines | Discovered new exit (range 8) 968 | -10/Mines | Core integrity fell below 50% 988 | -10/Mines | Excavation squad dispatched 988 | -10/Mines | A large section of the Mines collapsed 1380 | -10/Mines | Entered Exiles 1407 | -10/Exiles | Met 8R-AWN 1426 | -10/Exiles | Met EX-HEX 1482 | -10/Exiles | Met EX-DEC 1500 | -10/Exiles | Learned location of Zion (-6) 1523 | -10/Exiles | Met EX-BIN 1537 | -10/Exiles | Aligned with FarCom system 1538 | -10/Exiles | Given EX-Vault access code 1564 | -10/Exiles | Opened EX-Vault 1573 | -10/Exiles | Found Lightpack 2.0 1598 | -10/Exiles | Warned to stay clear of 0b10 Research branches 1702 | -10/Exiles | Discovered new exit (range 10) 1711 | -10/Exiles | Left Exiles lab with Lightpack 2.0 1711 | -10/Exiles | Entered Mines 1713 | -9/Mines | Met a Derelict bent on vengeance 2012 | -9/Mines | Discovered new exit (range 14) 2142 | -9/Mines | Discovered new exit (range 10) 2209 | -9/Mines | Learned location of Storage (-8) 2350 | -9/Mines | Entered Materials 2350 | -8/Materials | Evolved 4 slots: Propulsion x2, Utility x2 2351 | -8/Materials | Loaded intel: 12 terminal locations 2414 | -8/Materials | Identified exit to Garrison 2427 | -8/Materials | Discovered new exit (range 15) 2653 | -8/Materials | Build established: Scavenger-Mutant 3079 | -8/Materials | Build established: Mutant 3268 | -8/Materials | Discovered new exit (range 15) 3537 | -8/Materials | Discovered new exit (range 10) 3953 | -8/Materials | Repaired Imp. Grenade Launcher 4091 | -8/Materials | Repaired Hardlight Generator 4492 | -8/Materials | Repaired Hrd. Medium Armor Plating 4622 | -8/Materials | Discovered new exit (range 14) 4938 | -8/Materials | Entered Garrison 5060 | -8/Garrison | Triggered checkpoint 5115 | -8/Garrison | Garrison Relay disabled 5381 | -8/Garrison | Triggered checkpoint 5577 | -8/Garrison | Garrison Relay disabled 5578 | -8/Garrison | Build established: Scavenger-Mutant 5720 | -8/Garrison | Discovered new exit (range 10) 6000 | -8/Garrison | Triggered checkpoint 6008 | -8/Garrison | Core integrity fell below 50% 6095 | -8/Garrison | Discovered new exit (range 12) 6184 | -8/Garrison | Triggered checkpoint 6220 | -8/Garrison | Garrison Relay disabled 6253 | -8/Garrison | Garrison Relay disabled 6324 | -8/Garrison | Triggered checkpoint 6509 | -8/Garrison | Discovered new exit (range 10) 6654 | -8/Garrison | Triggered checkpoint 6694 | -8/Garrison | Garrison Relay disabled 6708 | -8/Garrison | Build established: Mutant 7113 | -8/Garrison | Entered Materials 7113 | -8/Materials | Accompanied by 2 allies 7219 | -8/Materials | Repaired Arm. Treads 7353 | -8/Materials | Discovered new exit (range 12) 8504 | -8/Materials | Discovered new exit (range 8) 8915 | -8/Materials | Repaired Hyp. Coil Gun 9117 | -8/Materials | Entered Storage 9154 | -8/Storage | Found Prototype Launcher 9154 | -8/Storage | Identified Scatter Rocket Array 9447 | -8/Storage | Discovered new exit (range 3) 9476 | -8/Storage | Identified exit to Garrison 10192 | -8/Storage | Repaired Arm. Medium Treads 10328 | -8/Storage | Repaired Arm. Treads 10599 | -8/Storage | Assisted by bots powering up and referring to "LRC-V3" 10676 | -8/Storage | Met a pair of Derelict thieves 10729 | -8/Storage | Core integrity fell below 20% 10740 | -8/Storage | Discovered new exit (range 16) 10750 | -8/Storage | Lost 11 allies 10838 | -8/Storage | Learned location of Armory (-4) 10896 | -8/Storage | Entered Factory 10896 | -7/Factory | Evolved 2 slots: Utility x2 11040 | -7/Factory | Repaired Cmb. Airjet 11060 | -7/Factory | Fabricated Adv. Hacking Suite (x1) 11078 | -7/Factory | Identified exit to Lower Caves 11209 | -7/Factory | Build established: Hauler-Mutant 11248 | -7/Factory | Fabricated Adv. Hacking Suite (x1) 11936 | -7/Factory | Entered Lower Caves 11951 | -7/Lower Caves | Met a Warlord Commander 11952 | -7/Lower Caves | Learned location of Warlord (-4) 11953 | -7/Lower Caves | Warlord Commander delivered Encrypted Comm Array 11955 | -7/Lower Caves | Found Encrypted Comm Array 11966 | -7/Lower Caves | Encountered a Warlord checkpoint 12014 | -7/Lower Caves | Learned Factory trap positions 12105 | -7/Lower Caves | Attracted the attention of an 0b10 outpost 12160 | -7/Lower Caves | Lost 4 parts (3n1u) 12890 | -7/Lower Caves | Discovered new exit (range 3) 12981 | -7/Lower Caves | Entered another Lower Caves area 12981 | -7/Lower Caves | Accompanied by 1 ally 13125 | -7/Lower Caves | Lost 8 parts (1p3n2u2w) 13194 | -7/Lower Caves | Discovered new exit (range 12) 13441 | -7/Lower Caves | Attracted the attention of an 0b10 checkpoint 13626 | -7/Lower Caves | Discovered new exit (range 12) 13810 | -7/Lower Caves | Entered Data Miner 13810 | -7/Data Miner | Accompanied by 1 ally 13810 | -7/Data Miner | Discovered new exit (range 6) 13829 | -7/Data Miner | Met Data Miner 13854 | -7/Data Miner | Learned location of Section 7 (-2) 13854 | -7/Data Miner | Acquired the access code to Warlord's prototype stash 13868 | -7/Data Miner | Received God Mode back door access code from Data Miner 13976 | -7/Data Miner | Destroyed Data Miner 13978 | -7/Data Miner | Found Ghost Barrier 13980 | -7/Data Miner | Found Quantum Router 13981 | -7/Data Miner | Data Conduit disabled 13984 | -7/Data Miner | Found System Mapper 13999 | -7/Data Miner | Core integrity fell below 50% 14038 | -7/Data Miner | Core integrity fell below 20% 14077 | -7/Data Miner | Lost 11 parts (1p8n2w) 14106 | -7/Data Miner | Entered Proximity Caves 14174 | -6/Proximity Caves | Destroyed by L-41 Fighter with Axe Last Messages --------------- Heat Sink. 14049_ Enhanced Grunt heat damages Adv. Heat Sink. 14049_ The unstable cave ceiling collapses. 14051_ Enhanced Grunt heat short circuits Prototype Leg. 14052_ Slug penetrates Enhanced Grunt. 14053_ Enhanced Grunt overheating. 14056_ Slug penetrates Enhanced Grunt. 14060_ Enhanced Grunt destroyed. 14062_ Acquired Hcp. Matter Pod. 14063_ Acquired 38 matter. 14065_ The unstable cave ceiling collapses. 14081_ Acquired 39 matter. 14085_ The unstable cave ceiling collapses. LOCATION=UNKNOWN GOAL=ESCAPE 14168_ Imp. Utility Shielding destroyed. 14170_ Slug penetrates G-50 Soldier. 14172_ Spear destroyed. Map ----- +----------------------------------------------------+ | ?????????????????????????????????????????????????? | | ?????????????????????????????????????????????????? | | ?????????????????????????????????????????????????? | | ?????????????????????????????????????????????????? | | ?????????????????????????????????????????????????? | | ?????????????????????????????????????????????????? | | ?????????#####???????????????????????????????????? | | ????????## ##?????????????????????????????????? | | ????????# #?????????????????????????????????? | | ????????# #?????????????????????????????????? | | ????????# #?????????????????????????????????? | | ????????# ##????????????????????????????????? | | ????????# ##???????????????????????????????? | | ????????## #???????????????????????????????? | | ?????????## #???????????????????????????????? | | ?????????## #?????????????##????????????????? | | ????????## ##????????????# ##???????????????? | | ???????## #????????????# #???????????????? | | ??????## ##??????????# #???????????????? | | ??????# #????####?# #???????????????? | | ??????# #??### ## #????????????????? | | ??????# ##### #?## #????????????????? | | ??????# ##????# ### #?????????????????? | | ??????##??????# #?????????????????? | | ??????????????# lg ##????????????????? | | ??????????????##### @g #????????????????? | | ??????????????????##### ## ?????????? | | ??????????????????????####?? #?????????? | | ????????????????????????????? ##?????????? | | ??????????????????????????????? ##??????????? | | ???????????????????????????????? #???????????? | | ????????????????????????????????? #???????????? | | ???????????????????????????????????##????????????? | | ?????????????????????????????????????????????????? | | ?????????????????????????????????????????????????? | | ?????????????????????????????????????????????????? | | ?????????????????????????????????????????????????? | | ?????????????????????????????????????????????????? | | ?????????????????????????????????????????????????? | | ?????????????????????????????????????????????????? | | ?????????????????????????????????????????????????? | | ?????????????????????????????????????????????????? | | ?????????????????????????????????????????????????? | | ?????????????????????????????????????????????????? | | ?????????????????????????????????????????????????? | | ?????????????????????????????????????????????????? | | ?????????????????????????????????????????????????? | | ?????????????????????????????????????????????????? | | ?????????????????????????????????????????????????? | | ?????????????????????????????????????????????????? | +----------------------------------------------------+ Best States ------------- Heat Dissipation 65 Energy Generation 18 Energy Capacity 280 Matter Stores 300 Matter Capacity 300 Sight Range 16 Terrain Scan Density 10 Armor Coverage 225 Resistance: EM 20 Utility Shielding 66 Evasion (%) 57 Targeting Accuracy 8 Recoil Reduction 4 Salvage Targeting 1 Offensive Hacking 24 Authchip Count 2 Trap Extractor Capacity 4 Item Schematics ----------------- Lrg. Storage Unit | -8/Materials | Scanalyzed Trap Extractor | -8/Materials | Scanalyzed Imp. Datajack | -8/Materials | Scanalyzed Hacking Suite | -8/Materials | Scanalyzed Imp. Utility Shielding | -8/Materials | Scanalyzed Adv. Hacking Suite | -7/Factory | Hacked Combat Drone Bay | -7/Data Miner | Free Lgt. Regenerative Plating | -7/Data Miner | Free Cld. Cesium-ion Thruster | -7/Data Miner | Free Gravity Neutralizer | -7/Data Miner | Free Antimatter Cannon | -7/Data Miner | Free Antigrav System | -7/Data Miner | Free Imp. Thermal Shield | -7/Data Miner | Free Hyp. Gauss Cannon | -7/Data Miner | Free Fission Core | -7/Data Miner | Free Imp. Focal Shield | -7/Data Miner | Free Adv. Power Amplifier | -7/Data Miner | Free Robot Schematics ------------------ M-13 Machinist | -10/Mines | Hacked O-16 Technician | -10/Mines | Hacked Y-45 Defender | -8/Storage | Hacked G-47 Trooper | -7/Data Miner | Free H-55 Commando | -7/Data Miner | Free H-66 Slayer | -7/Data Miner | Free R-10 Processor | -7/Data Miner | Free Fabricated ------------ Adv. Hacking Suite | x1 | -7/Factory Adv. Hacking Suite | x1 | -7/Factory Alien Tech Used ----------------- None Achievements -------------- None Challenges ------------ None Game ------ Seed CryofiberMyomerRedirector Manual? 0 Play Time 01:56:37 Cumulative 731.0 hours Start 2024.05.18 @ 14:52:48 End 2024.05.18 @ 17:09:55 Sessions 1 Manual Loads 0 Difficulty Rogue Special Mode None Game No. 299 Rogue 269 Adventurer 3 Explorer 27 Win Type - Total 16 Types 10/3/1/1/0/1/0/0/0 Lore% 91 Gallery% 96 Achievement% 85 Wizard Run 0 Options --------- Layout 2 ASCII 0 Keyboard 0 Movement Numpad Keybinds 0 Fullscreen 2 Font 24/Smallcaps Map View 50x44 Zoom Use 0% Tactical HUD 1 Map Filters NONE Filters NONE Steam 1 RUN: a6a333d0-a84b-4033-81eb-4cf1e1b4bbea